bitfinex/quotes_SOLUSD_20250622
["timestamp","ask_amount","ask_price","bid_price","bid_amount"]
[1750622543670,21.52873874,129.3,129.26,21.52873874]
[1750622543890,21.52873874,129.29,129.25,21.52873874]
[1750622544064,21.52873874,129.3,129.26,21.52873874]
[1750622545692,21.52873874,129.3,129.26,22.22873874]
[1750622546368,21.52873874,129.3,129.26,21.52873874]
[1750622547576,21.52873874,129.3,129.26,22.22873874]
[1750622548993,21.52873874,129.29,129.25,21.52873874]
[1750622549292,21.52873874,129.28,129.23,0.7]
[1750622549493,21.52873874,129.28,129.23,22.22873874]
[1750622549794,21.52873874,129.26,129.22,48.8711876]
[1750622549997,21.52873874,129.28,129.23,22.22873874]
[1750622550579,21.52873874,129.29,129.24,22.22873874]
[1750622551676,21.52873874,129.3,129.26,22.22873874]
[1750622551878,21.52873874,129.3,129.26,0.7]
[1750622552072,21.52873874,129.29,129.24,40.1783876]
[1750622552276,21.52873874,129.28,129.24,40.1783876]
[1750622552478,21.52873874,129.28,129.23,21.52873874]
[1750622552680,21.52873874,129.28,129.23,22.22873874]
[1750622552898,21.52873874,129.26,129.2,19.34964886]
[1750622553098,21.52873874,129.23,129.19,8.7064]
[1750622553407,21.52873874,129.23,129.19,1.5264]
[1750622553813,21.52873874,129.22,129.19,1.5264]
[1750622555010,21.52873874,129.21,129.17,59.2062448]
[1750622555214,21.52873874,129.19,129.17,59.2062448]
[1750622555508,21.52873874,129.2,129.17,59.2062448]
[1750622556203,21.52873874,129.18,129.17,59.2062448]
[1750622556794,21.93873874,129.18,129.17,58.7962448]
[1750622556997,21.93873874,129.18,129.11,0.7]
[1750622557200,21.52873874,129.15,129.11,0.7]
[1750622557410,21.52873874,129.14,129.11,0.7]
[1750622557886,21.52873874,129.13,129.09,22.22873874]
[1750622558216,21.52873874,129.12,129.08,23.80133874]
[1750622558510,21.52873874,129.11,129.06,21.52873874]
[1750622558702,21.52873874,129.11,129.06,22.22873874]
[1750622559005,21.52873874,129.11,129.06,21.52873874]
[1750622559208,7.7578,129.16,129.05,81.94491564]
[1750622559209,21.52873874,129.09,129.05,81.94491564]
[1750622559519,5.71376512,129.14,129.06,19.34964886]
[1750622559719,26.0,129.11,129.09,21.52873874]
[1750622559916,26.0,129.11,129.08,21.52873874]
[1750622560220,26.0,129.12,129.08,0.7]
[1750622560387,47.52873874,129.12,129.08,22.22873874]
[1750622560892,26.0,129.12,129.08,22.22873874]
[1750622561208,21.52873874,129.11,129.05,61.1161769]
[1750622561402,21.52873874,129.09,129.05,82.64491564]
[1750622562413,21.52873874,129.09,129.05,61.1161769]
[1750622562723,21.52873874,129.08,129.05,60.4161769]
[1750622563210,21.52873874,129.1,129.06,22.22873874]
[1750622565020,21.52873874,129.12,129.08,21.52873874]
[1750622565220,21.52873874,129.11,129.06,18.64964886]
[1750622565387,21.52873874,129.1,129.06,40.9183876]
[1750622565583,21.52873874,129.1,129.06,22.26873874]
[1750622566910,21.52873874,129.11,129.06,22.26873874]
[1750622567211,21.52873874,129.09,129.06,0.74]
[1750622567519,47.52873874,129.1,129.06,0.74]
[1750622567813,21.52873874,129.09,129.06,0.74]
[1750622568589,21.52873874,129.08,129.05,60.4161769]
[1750622569512,21.52873874,129.07,129.05,60.4161769]
[1750622569691,26.0,129.08,129.05,60.4161769]
[1750622569692,21.52873874,129.06,129.05,60.4161769]
[1750622570194,21.52873874,129.06,129.0,0.74]
[1750622570391,21.52873874,129.03,128.98,22.26873874]
[1750622570592,21.52873874,129.02,128.96,7.8212]
[1750622570793,21.52873874,129.02,128.98,0.74]
[1750622571095,21.52873874,129.0,128.96,23.84373874]
[1750622571399,21.52873874,129.0,128.97,0.74]
[1750622571713,21.52873874,128.98,128.93,0.74]
[1750622571908,21.52873874,128.96,128.92,82.7704539]
[1750622572218,21.52873874,128.95,128.92,61.24171516]
[1750622572508,21.52873874,128.97,128.92,82.0304539]
[1750622572722,21.52873874,128.96,128.92,82.0304539]
[1750622572902,21.52873874,128.96,128.92,60.50171516]
[1750622573305,21.52873874,128.96,128.92,82.7704539]
[1750622573812,21.52873874,128.96,128.92,61.24171516]
[1750622574020,21.52873874,128.94,128.92,60.50171516]
[1750622574329,26.0,128.96,128.9,22.26873874]
[1750622574624,26.0,128.96,128.88,7.75871047]
[1750622574625,21.52873874,128.96,128.92,0.74]
[1750622574915,21.52873874,128.94,128.9,22.26873874]
[1750622576194,21.52873874,128.93,128.9,0.74]
[1750622576530,47.52873874,128.93,128.88,40.1783876]
[1750622576837,47.52873874,128.93,128.89,0.74]
[1750622577003,21.52873874,128.92,128.86,32.6638]
[1750622577202,21.52873874,128.92,128.88,22.26873874]
[1750622577502,21.52873874,128.92,128.88,0.74]
[1750622577704,21.52873874,128.92,128.88,22.26873874]
[1750622577918,21.52873874,128.93,128.89,0.74]
[1750622579003,21.52873874,128.92,128.89,0.74]
[1750622579540,21.52873874,128.9,128.83,64.16421596]
[1750622579842,6.2307,128.95,128.88,21.52873874]
[1750622580037,21.52873874,128.92,128.87,21.52873874]
[1750622580201,21.52873874,128.95,128.91,21.52873874]
[1750622580403,28.76873874,128.98,128.93,21.52873874]
[1750622580824,21.52873874,128.96,128.9,0.74]
[1750622581045,43.36391748,129.01,128.95,21.52873874]
[1750622581046,9.19371748,129.01,128.95,21.52873874]
[1750622581242,7.24,129.05,129.0,21.52873874]
[1750622581414,7.24,129.05,129.01,21.52873874]
[1750622581620,21.52873874,129.03,128.99,21.52873874]
[1750622581834,21.52873874,129.04,128.99,21.52873874]
[1750622582142,28.76873874,129.05,129.0,21.52873874]
[1750622582346,26.0,129.01,129.0,21.52873874]
[1750622582836,28.76873874,129.05,129.0,21.52873874]
[1750622583005,28.76873874,129.05,129.01,21.52873874]
[1750622583211,7.24,129.05,129.01,21.52873874]
[1750622583763,54.76873874,129.05,129.01,21.52873874]
[1750622586630,7.24,129.05,129.01,21.52873874]
[1750622586820,7.24,129.05,129.01,22.26873874]
[1750622587021,28.76873874,129.05,129.01,22.26873874]
[1750622589533,28.76873874,129.05,128.98,52.40260109]
[1750622589534,7.24,129.05,129.02,21.52873874]
[1750622589836,21.52873874,129.04,128.99,0.74]
[1750622590021,7.24,129.05,129.02,0.74]
[1750622590334,7.24,129.05,129.02,22.26873874]
[1750622590634,26.0,129.04,129.02,22.26873874]
[1750622591230,54.76873874,129.05,129.01,22.26873874]
[1750622591534,54.76873874,129.05,129.01,0.74]
[1750622592212,21.52873874,129.03,128.98,18.64964886]
[1750622592423,21.52873874,129.01,128.96,22.26873874]
[1750622592819,21.52873874,128.98,128.94,0.74]
[1750622593038,21.52873874,128.97,128.94,0.74]
[1750622593336,21.52873874,128.95,128.92,0.74]
[1750622593538,47.52873874,128.96,128.92,0.74]
[1750622593916,5.67281777,128.98,128.94,21.52873874]
[1750622594119,21.52873874,128.98,128.95,0.72]
[1750622596065,21.52873874,128.96,128.91,54.31536036]
[1750622596217,21.52873874,128.95,128.91,55.03536036]
[1750622596418,21.52873874,128.93,128.91,54.31536036]
[1750622596727,21.52873874,128.94,128.91,54.31536036]
[1750622597542,47.52873874,128.95,128.91,54.31536036]
[1750622597714,31.67329868,128.95,128.93,22.24873874]
[1750622597918,26.0,128.95,128.93,22.24873874]
[1750622598847,26.0,128.95,128.93,0.72]
[1750622598848,31.70570506,128.95,128.93,0.72]
[1750622599022,26.0,128.95,128.93,0.72]
[1750622599743,5.71175209,128.96,128.93,0.72]
[1750622599953,31.71222841,128.96,128.94,21.52873874]
[1750622600153,26.0,128.96,128.94,22.24873874]
[1750622600530,7.04580288,129.0,128.96,0.72]
[1750622600723,5.71792862,128.99,128.96,0.72]
[1750622601080,5.71792862,128.98,128.96,22.24873874]
[1750622601342,28.57454162,129.02,128.98,0.72]
[1750622601538,5.72444966,129.01,128.98,22.24873874]
[1750622601733,5.72444966,129.0,128.98,22.24873874]
[1750622601951,5.72444966,128.99,128.98,0.72]
[1750622602923,5.72444966,128.99,128.98,22.24873874]
[1750622603134,5.72444966,128.99,128.96,21.52873874]
[1750622603330,5.72444966,128.98,128.96,22.24873874]
[1750622603536,5.72444966,128.97,128.96,19.36964886]
[1750622603742,5.72444966,128.97,128.96,40.8983876]
[1750622604132,7.04580288,129.01,128.96,40.1783876]
[1750622604332,5.72906128,129.0,128.97,22.24873874]
[1750622604526,5.72906128,128.99,128.97,22.24873874]
[1750622604732,5.72906128,128.98,128.97,22.24873874]
[1750622606633,26.0,129.01,128.98,18.64964886]
[1750622606838,5.73865365,129.0,128.99,22.24873874]
[1750622607741,5.73865365,129.0,128.99,40.8983876]
[1750622607958,21.52873874,129.04,128.99,47.93070924]
[1750622607959,7.04580288,129.04,128.99,47.93070924]
[1750622608143,5.74238448,129.03,129.01,22.24873874]
[1750622608352,5.74238448,129.02,129.01,22.24873874]
[1750622612739,5.74238448,129.02,129.01,40.8983876]
[1750622612945,7.04580288,129.1,129.03,0.72]
[1750622613162,7.04580288,129.1,129.09,21.52873874]
[1750622613469,7.04580288,129.12,129.09,21.52873874]
[1750622613679,7.04580288,129.13,129.11,21.52873874]
[1750622613981,22.22873874,129.15,129.1,40.1783876]
[1750622614274,22.22873874,129.15,129.11,21.52873874]
[1750622614678,22.22873874,129.15,129.1,40.1783876]
[1750622615062,22.22873874,129.15,129.11,21.52873874]
[1750622615291,22.22873874,129.14,129.1,21.52873874]
[1750622615456,0.7,129.14,129.1,21.52873874]
[1750622616458,26.7,129.14,129.1,21.52873874]
[1750622618160,21.52873874,129.13,129.08,21.52873874]
[1750622618362,22.22873874,129.09,129.01,0.72]
[1750622618567,21.52873874,129.06,129.02,21.52873874]
[1750622618871,21.52873874,129.04,128.99,21.52873874]
[1750622619066,21.52873874,129.03,128.99,21.52873874]
[1750622619256,22.22873874,129.04,128.99,21.52873874]
[1750622619467,21.52873874,129.03,128.99,21.52873874]
[1750622621584,22.22873874,129.04,128.99,21.52873874]
[1750622621784,21.52873874,129.04,128.99,22.24873874]
[1750622622876,21.52873874,129.03,128.99,22.24873874]
[1750622623091,21.52873874,129.02,128.97,21.52873874]
[1750622623295,21.52873874,129.01,128.97,21.52873874]
[1750622623703,21.52873874,129.01,128.96,19.36964886]
[1750622624003,21.52873874,128.98,128.95,53.87834181]
[1750622626095,47.52873874,128.98,128.95,53.87834181]
[1750622626681,26.0,128.98,128.96,21.52873874]
[1750622627397,26.0,128.98,128.95,76.10708055]
[1750622629202,0.71,129.02,128.97,21.52873874]
[1750622629402,21.52873874,129.02,128.96,18.64964886]
[1750622629585,0.71,129.0,128.96,40.1783876]
[1750622629790,22.23873874,129.0,128.95,75.40708055]
[1750622629986,21.52873874,128.99,128.95,75.40708055]
[1750622630192,22.23873874,129.0,128.96,21.52873874]
[1750622630388,22.23873874,129.01,128.95,53.87834181]
[1750622630593,22.23873874,129.01,128.96,40.1783876]
[1750622631581,22.23873874,129.01,128.96,21.52873874]
[1750622631808,21.52873874,129.0,128.96,21.52873874]
[1750622632904,48.23873874,129.0,128.96,21.52873874]
[1750622633079,26.0,129.0,128.97,21.52873874]
[1750622633479,21.52873874,129.02,128.97,21.52873874]
[1750622633693,33.62856208,129.04,129.0,21.52873874]
[1750622633896,21.52873874,129.03,128.99,21.52873874]
[1750622634090,54.59903874,129.04,129.0,21.52873874]
[1750622634291,54.59903874,129.04,128.98,18.64964886]
[1750622634492,54.59903874,129.04,128.99,21.52873874]
[1750622634904,0.71,129.03,128.99,21.52873874]
[1750622635397,6.45579959,129.03,128.99,21.52873874]
[1750622635594,0.71,129.03,128.99,21.52873874]
[1750622636400,27.98315692,129.03,128.99,21.52873874]
[1750622636604,22.23873874,129.03,128.99,21.52873874]
[1750622636813,0.71,129.03,129.0,21.52873874]
[1750622637016,33.0703,129.04,129.0,21.52873874]
[1750622637223,53.88903874,129.04,129.0,21.52873874]
[1750622637437,0.71,129.02,128.98,21.52873874]
[1750622638312,0.71,129.02,128.97,0.7]
[1750622638313,27.27197494,129.03,128.99,21.52873874]
[1750622638521,27.98222082,129.03,128.99,21.52873874]
[1750622639208,0.71,129.02,128.98,21.52873874]
[1750622639410,21.52873874,129.01,128.97,21.52873874]
[1750622639605,22.23873874,129.01,128.97,21.52873874]
[1750622640500,0.71,129.01,128.97,21.52873874]
[1750622640707,0.71,129.0,128.96,21.52873874]
[1750622641296,26.71,129.01,128.97,21.52873874]
[1750622641493,48.23873874,129.01,128.94,19.34964886]
[1750622641833,22.23873874,128.97,128.93,21.52873874]
[1750622642198,0.71,128.96,128.92,21.52873874]
[1750622642391,15.1513804,129.01,128.91,52.85001696]
[1750622642392,47.52873874,129.01,128.95,21.52873874]
[1750622642613,21.52873874,129.0,128.96,21.52873874]
[1750622642819,0.71,128.99,128.95,21.52873874]
[1750622643312,26.0,128.98,128.94,21.52873874]
[1750622644647,47.52873874,128.98,128.93,21.52873874]
[1750622644858,0.71,128.97,128.93,21.52873874]
[1750622645025,22.23873874,128.97,128.92,21.52873874]
[1750622645852,21.52873874,128.97,128.92,21.52873874]
[1750622646156,21.52873874,128.97,128.91,70.79966582]
[1750622646157,21.52873874,128.94,128.91,52.15001696]
[1750622646332,22.23873874,128.95,128.91,73.6787557]
[1750622646528,0.71,128.96,128.92,21.52873874]
[1750622646731,22.23873874,128.97,128.93,21.52873874]
[1750622647031,22.23873874,128.96,128.92,21.52873874]
[1750622647233,21.52873874,128.94,128.91,52.15001696]
[1750622647476,0.71,128.94,128.91,52.15001696]
[1750622647650,22.23873874,128.94,128.91,52.15001696]
[1750622647947,0.71,128.94,128.91,52.15001696]
[1750622648661,21.52873874,128.96,128.91,74.3787557]
[1750622648827,22.23873874,128.97,128.92,21.52873874]
[1750622649138,6.0825,129.01,128.95,21.52873874]
[1750622649452,27.61123874,129.01,128.97,21.52873874]
[1750622649629,6.0825,129.01,128.97,21.52873874]
[1750622649827,6.0825,129.01,128.98,21.52873874]
[1750622650553,9.6932,129.02,128.98,21.52873874]
[1750622650752,31.22193874,129.02,128.98,21.52873874]
[1750622651362,0.71,129.01,128.97,21.52873874]
[1750622651542,22.23873874,129.01,128.95,0.7]
[1750622651742,22.23873874,129.01,128.97,21.52873874]
[1750622651938,30.51193874,129.02,128.97,21.52873874]
[1750622652244,30.51193874,129.02,128.95,0.7]
[1750622652245,33.4,129.02,128.99,21.52873874]
[1750622652562,33.4,129.02,128.98,21.52873874]
[1750622652736,55.63873874,129.02,128.98,21.52873874]
[1750622653869,33.4,129.02,128.98,21.52873874]
[1750622654365,6.0825,129.04,129.01,21.52873874]
[1750622654549,6.0825,129.04,128.98,0.72]
[1750622654866,54.30123874,129.04,129.0,21.52873874]
[1750622655165,21.52873874,129.01,128.94,18.64964886]
[1750622655362,0.69,129.03,128.98,21.52873874]
[1750622655363,6.42638512,129.03,128.98,21.52873874]
[1750622655541,26.0,129.02,128.97,0.72]
[1750622655855,5.73638512,129.04,129.01,21.52873874]
[1750622656044,21.52873874,129.06,129.01,21.52873874]
[1750622656245,22.21873874,129.05,129.01,21.52873874]
[1750622657038,21.52873874,129.02,128.96,0.72]
[1750622657340,21.52873874,129.01,128.97,21.52873874]
[1750622657540,21.52873874,129.02,128.98,21.52873874]
[1750622657768,5.73638512,129.05,128.99,21.52873874]
[1750622657769,21.52873874,129.04,128.99,21.52873874]
[1750622658361,21.52873874,129.04,128.99,22.24873874]
[1750622658770,27.26512386,129.05,129.0,21.52873874]
[1750622658981,27.95512386,129.05,129.0,21.52873874]
[1750622659160,21.52873874,129.04,128.99,21.52873874]
[1750622659357,26.0,129.03,129.0,21.52873874]
[1750622660061,26.69,129.02,128.95,0.72]
[1750622660270,26.0,129.02,128.99,21.52873874]
[1750622660466,26.0,129.02,128.98,21.52873874]
[1750622660679,47.52873874,129.02,128.96,18.64964886]
[1750622660873,47.52873874,129.02,128.98,21.52873874]
[1750622661272,22.21873874,129.01,128.97,21.52873874]
[1750622661475,21.52873874,129.0,128.96,21.52873874]
[1750622661788,27.96540802,129.01,128.96,21.52873874]
[1750622662584,27.96540802,129.01,128.94,19.36964886]
[1750622662585,5.74666928,129.0,128.97,21.52873874]
[1750622663075,5.74666928,129.01,128.99,21.52873874]
[1750622663266,5.74666928,129.03,129.0,21.52873874]
[1750622663464,5.74666928,129.02,129.01,21.52873874]
[1750622663670,5.74666928,129.04,129.01,40.1783876]
[1750622663885,5.74666928,129.03,129.01,40.1783876]
[1750622664192,5.74666928,129.02,129.01,40.1783876]
[1750622664385,5.74666928,129.04,129.01,40.1783876]
[1750622664570,5.74666928,129.03,129.02,21.52873874]
[1750622665489,5.74666928,129.03,129.01,40.1783876]
[1750622665700,5.74666928,129.02,129.01,40.1783876]
[1750622665872,5.74666928,129.04,129.01,40.1783876]
[1750622666072,5.74666928,129.03,129.01,40.1783876]
[1750622666376,5.74666928,129.02,129.01,40.8983876]
[1750622666578,5.74666928,129.04,129.01,40.8983876]
[1750622666788,5.74666928,129.03,129.02,21.52873874]
[1750622669677,5.74666928,129.04,129.02,21.52873874]
[1750622669872,26.0,129.05,129.02,40.1783876]
[1750622669873,5.74666928,129.03,129.02,40.1783876]
[1750622670072,5.74666928,129.04,129.02,22.24873874]
[1750622670400,5.74666928,129.03,129.02,40.1783876]
[1750622670586,5.74666928,129.04,129.02,40.1783876]
[1750622670772,5.74666928,129.03,129.02,40.1783876]
[1750622670972,5.74666928,129.04,129.02,40.1783876]
[1750622671172,5.74666928,129.03,129.02,40.1783876]
[1750622671470,5.74666928,129.04,129.02,40.1783876]
[1750622671671,5.74666928,129.03,129.02,40.1783876]
[1750622671878,5.74666928,129.04,129.02,40.1783876]
[1750622672090,5.74666928,129.03,129.01,21.52873874]
[1750622672289,5.74666928,129.02,128.99,30.83363926]
[1750622672490,5.74666928,129.03,128.99,30.83363926]
[1750622672681,5.74666928,129.02,128.99,30.83363926]
[1750622672886,5.74666928,129.03,128.99,30.83363926]
[1750622673076,5.74666928,129.02,128.99,30.83363926]
[1750622673275,5.74666928,129.03,129.0,12.1839904]
[1750622673488,5.74666928,129.02,129.01,30.83363926]
[1750622673693,5.74666928,129.04,129.01,30.83363926]
[1750622673898,5.74666928,129.03,129.01,30.83363926]
[1750622674084,5.74666928,129.02,129.01,30.83363926]
[1750622674286,5.74666928,129.04,129.01,30.83363926]
[1750622674481,5.74666928,129.03,129.01,30.83363926]
[1750622674807,5.74666928,129.02,129.01,19.36964886]
[1750622675101,5.74666928,129.05,129.02,18.64964886]
[1750622675305,5.74666928,129.07,129.05,18.64964886]
[1750622675473,7.4,129.08,129.06,12.1839904]
[1750622675797,5.77455242,129.07,129.06,12.1839904]
[1750622676000,12.1839904,129.08,129.01,0.72]
[1750622676181,0.69,129.06,129.03,12.1839904]
[1750622676389,5.77455242,129.05,129.03,21.649961]
[1750622677384,5.77455242,129.06,129.04,21.649961]
[1750622677597,5.77455242,129.07,129.04,21.649961]
[1750622677982,5.77455242,129.07,129.05,21.649961]
[1750622678181,5.77455242,129.08,129.05,21.649961]
[1750622678385,5.77455242,129.07,129.04,21.649961]
[1750622678585,47.649961,129.08,129.04,21.649961]
[1750622678586,5.77455242,129.06,129.04,21.649961]
[1750622678893,5.77455242,129.07,129.04,21.649961]
[1750622679082,5.77455242,129.06,129.04,21.649961]
[1750622679278,26.0,129.05,128.99,6.5354]
[1750622679484,5.77455242,129.04,129.0,40.29960986]
[1750622679698,5.77455242,129.03,129.0,41.01960986]
[1750622680002,5.77455242,129.04,129.0,41.01960986]
[1750622680309,28.11451342,129.03,128.99,21.649961]
[1750622680476,21.649961,129.0,128.96,21.649961]
[1750622681122,21.649961,128.99,128.95,19.36964886]
[1750622681333,27.42451342,128.99,128.95,40.29960986]
[1750622681537,5.77455242,128.99,128.95,41.01960986]
[1750622682531,22.339961,129.0,128.95,41.01960986]
[1750622682708,28.11451342,129.0,128.95,41.01960986]
[1750622682907,22.339961,129.0,128.95,41.01960986]
[1750622683207,28.11451342,129.0,128.96,21.649961]
[1750622683415,5.77455242,128.99,128.97,22.369961]
[1750622683624,33.18325376,129.02,128.97,22.369961]
[1750622683625,5.77455242,129.01,128.97,22.369961]
[1750622683820,5.77455242,129.0,128.98,21.649961]
[1750622684024,5.77455242,129.01,128.98,21.649961]
[1750622684328,5.77455242,129.01,128.98,22.339961]
[1750622684629,5.77455242,129.01,128.99,21.649961]
[1750622684838,5.77455242,129.02,129.0,40.98960986]
[1750622685052,5.77455242,129.04,129.01,21.649961]
[1750622685263,5.77455242,129.03,129.01,21.649961]
[1750622685427,5.77455242,129.05,129.01,21.649961]
[1750622685629,5.77455242,129.04,129.01,21.649961]
[1750622685830,5.77455242,129.05,129.01,21.649961]
[1750622686029,5.77455242,129.04,129.01,21.649961]
[1750622686949,5.77455242,129.04,129.01,22.339961]
[1750622687354,5.77455242,129.04,129.01,21.649961]
[1750622687662,5.77455242,129.03,129.01,21.649961]
[1750622687968,5.77455242,129.04,129.01,21.649961]
[1750622688947,5.77455242,129.04,129.03,21.649961]
[1750622689160,5.77455242,129.05,129.03,21.649961]
[1750622689656,5.77455242,129.04,129.01,40.29960986]
[1750622690735,5.77455242,129.05,129.02,21.649961]
[1750622690967,5.77455242,129.04,129.01,40.29960986]
[1750622691146,5.77455242,129.05,129.01,40.29960986]
[1750622691347,22.369961,129.02,128.97,21.649961]
[1750622691535,21.649961,128.99,128.94,21.649961]
[1750622691739,21.649961,128.99,128.95,18.64964886]
[1750622691740,5.77455242,128.98,128.95,18.64964886]
[1750622691946,5.7680963,128.98,128.95,18.64964886]
[1750622692654,27.4180573,128.97,128.93,21.649961]
[1750622692870,5.7680963,128.96,128.93,21.649961]
[1750622693743,5.7680963,128.96,128.92,40.29960986]
[1750622693744,5.770953,128.95,128.92,40.29960986]
[1750622694575,5.770953,128.95,128.93,21.649961]
[1750622694770,5.770953,128.96,128.93,21.649961]
[1750622695072,47.649961,128.97,128.93,21.649961]
[1750622695269,5.76912833,128.96,128.93,21.649961]
[1750622695461,47.649961,128.97,128.93,21.649961]
[1750622695659,5.76862952,128.96,128.93,21.649961]
[1750622695861,3.76862952,128.96,128.93,21.649961]
[1750622696069,26.0,128.97,128.95,40.29960986]
[1750622696967,26.0,128.97,128.95,18.64964886]
[1750622697152,26.0,128.97,128.95,40.29960986]
[1750622700064,26.0,128.97,128.95,18.64964886]
[1750622700268,26.0,128.97,128.94,22.339961]
[1750622700472,48.369961,128.97,128.92,21.649961]
[1750622700779,48.369961,128.97,128.92,22.339961]
[1750622701079,22.59002038,129.04,128.97,18.64964886]
[1750622701373,0.72,129.02,128.98,21.649961]
[1750622701579,22.369961,129.02,128.98,21.649961]
[1750622701878,0.72,129.02,128.98,21.649961]
[1750622702082,44.23998138,129.04,128.99,22.339961]
[1750622702254,7.44,129.04,129.02,21.649961]
[1750622702566,21.649961,129.06,129.02,21.649961]
[1750622702762,21.649961,129.05,129.0,21.649961]
[1750622702956,21.649961,129.03,128.98,21.649961]
[1750622703157,22.369961,129.03,128.98,21.649961]
[1750622703459,0.72,129.03,128.99,21.649961]
[1750622704079,22.369961,129.03,128.99,21.649961]
[1750622704796,22.369961,129.02,128.98,21.649961]
[1750622705467,47.649961,129.03,128.99,21.649961]
[1750622705888,48.369961,129.03,128.99,21.649961]
[1750622706184,48.369961,129.03,128.98,21.649961]
[1750622706978,0.72,129.02,128.98,21.649961]
[1750622707372,22.369961,129.02,128.96,26.77964886]
[1750622707579,22.369961,129.02,128.97,40.29960986]
[1750622707766,22.369961,129.02,128.98,21.649961]
[1750622707969,5.76785137,129.01,128.98,21.649961]
[1750622708167,5.76785137,129.0,128.98,21.649961]
[1750622708466,5.76785137,129.01,128.98,21.649961]
[1750622708668,5.76785137,129.0,128.98,21.649961]
[1750622708872,5.76785137,129.01,128.98,21.649961]
[1750622709062,5.76785137,129.01,128.99,21.649961]
[1750622709982,5.76785137,129.02,128.99,21.649961]
[1750622710182,5.76785137,129.01,128.99,21.649961]
[1750622710363,28.13781237,129.02,128.98,21.649961]
[1750622710567,22.369961,129.0,128.96,21.649961]
[1750622710771,5.76785137,128.99,128.96,21.649961]
[1750622711181,5.76785137,129.01,128.98,21.649961]
[1750622711380,5.76785137,129.0,128.98,21.649961]
[1750622711581,5.76785137,129.01,128.99,21.649961]
[1750622711768,5.76785137,129.01,128.97,0.69]
[1750622711769,5.76785137,129.02,128.98,21.649961]
[1750622711978,5.76785137,129.01,128.98,21.649961]
[1750622712278,5.76785137,129.0,128.98,21.649961]
[1750622712475,5.76785137,129.01,128.98,21.649961]
[1750622712681,5.76785137,129.0,128.98,21.649961]
[1750622712869,5.76785137,129.01,128.98,21.649961]
[1750622713771,5.76785137,129.02,128.98,21.649961]
[1750622713983,27.41781237,129.01,128.94,19.36964886]
[1750622714191,22.389961,128.99,128.95,18.64964886]
[1750622714375,5.76785137,128.98,128.95,40.29960986]
[1750622714704,5.76785137,128.98,128.95,41.01960986]
[1750622714887,5.76785137,129.0,128.96,22.369961]
[1750622715094,5.76785137,128.99,128.96,22.369961]
[1750622715377,28.15781237,128.99,128.94,21.649961]
[1750622715602,21.649961,128.97,128.93,21.649961]
[1750622715819,27.41781237,128.97,128.93,21.649961]
[1750622715975,27.41781237,128.98,128.93,21.649961]
[1750622716183,5.76785137,128.97,128.94,21.649961]
[1750622716493,5.76785137,128.97,128.93,22.369961]
[1750622716694,5.76785137,128.97,128.94,21.649961]
[1750622717275,5.76785137,128.98,128.94,21.649961]
[1750622717474,21.649961,128.99,128.94,21.649961]
[1750622717475,5.76785137,128.97,128.94,21.649961]
[1750622717784,5.76785137,128.98,128.94,21.649961]
[1750622717989,21.649961,128.99,128.94,21.649961]
[1750622717990,5.76785137,128.97,128.94,21.649961]
[1750622718185,5.76785137,128.98,128.94,21.649961]
[1750622718510,5.76785137,128.98,128.96,21.649961]
[1750622718844,31.76785137,128.99,128.96,21.649961]
[1750622719708,31.76785137,128.99,128.95,22.369961]
[1750622719909,5.76785137,128.98,128.95,22.369961]
[1750622720081,31.76785137,128.99,128.95,22.369961]
[1750622720687,5.76785137,128.98,128.95,22.369961]
[1750622721407,5.76785137,128.98,128.96,22.369961]
[1750622721588,5.76785137,129.0,128.97,41.01960986]
[1750622722506,5.76785137,129.0,128.98,21.649961]
[1750622722721,5.76785137,129.01,129.0,19.36964886]
[1750622723019,5.76785137,129.02,128.99,21.649961]
[1750622723222,5.76785137,129.02,129.0,21.649961]
[1750622723582,5.76785137,129.02,129.01,21.649961]
[1750622723809,5.76785137,129.04,129.01,22.369961]
[1750622724018,5.76785137,129.03,129.02,21.649961]
[1750622724215,5.76785137,129.05,129.02,21.649961]
[1750622724415,5.76785137,129.04,129.02,21.649961]
[1750622724599,5.76785137,129.03,129.02,21.649961]
[1750622724796,5.76785137,129.05,129.02,21.649961]
[1750622725010,5.76785137,129.04,129.02,21.649961]
[1750622725212,27.41781237,129.05,129.01,21.649961]
[1750622725391,5.76785137,129.04,129.01,21.649961]
[1750622725718,5.76785137,129.04,129.01,22.369961]
[1750622725920,5.77440268,129.03,129.0,40.29960986]
[1750622726089,5.77440268,129.04,129.0,40.29960986]
[1750622726423,5.77440268,129.03,129.0,41.01960986]